fUSD/lending_fUSD_20240609
["ID","MTS","AMOUNT","RATE_DAILY","PERIOD"]
[328883255,1717955447565,-210.286366,0.0002913,7]
[328883257,1717955447576,-193.939648,0.0002913,7]
[328883259,1717955447586,-210.286366,0.0002913,7]
[328883261,1717955447596,-210.286366,0.0002913,7]
[328883263,1717955447606,-210.286366,0.0002913,7]
[328883265,1717955447616,-210.286366,0.0002913,7]
[328883267,1717955447626,-210.286366,0.0002913,7]
[328883269,1717955447637,-210.286366,0.0002913,7]
[328883271,1717955447648,-210.286366,0.0002913,7]
[328883273,1717955447657,-151.0,0.0002913,7]
[328883275,1717955447667,-151.0,0.0002913,7]
[328883277,1717955447677,-151.0,0.0002913,7]
[328883278,1717955447688,-151.0,0.0002913,7]
[328883280,1717955447698,-151.0,0.0002913,7]
[328883281,1717955447708,-151.0,0.0002913,7]
[328883282,1717955447718,-162.120981,0.0002913,7]
[328883283,1717955447727,-151.0,0.0002913,7]
[328883284,1717955447737,-277.9784,0.0002913,7]
[328883285,1717955447747,-151.0,0.0002913,7]
[328883286,1717955447758,-151.0,0.0002913,7]
[328883287,1717955447768,-151.0,0.0002913,7]
[328883288,1717955447779,-151.0,0.0002913,7]
[328883289,1717955447790,-151.0,0.0002913,7]
[328883291,1717955447800,-151.0,0.0002913,7]
[328883292,1717955447811,-151.0,0.0002913,7]
[328883294,1717955447821,-151.0,0.0002913,7]
[328883296,1717955447832,-151.0,0.0002913,7]
[328883298,1717955447842,-151.0,0.0002913,7]
[328883301,1717955447853,-151.0,0.0002913,7]
[328883303,1717955447863,-213.908878,0.0002913,7]
[328883305,1717955447873,-213.908878,0.0002913,7]
[328883307,1717955447883,-151.0,0.0002913,7]
[328883309,1717955447893,-213.908878,0.0002913,7]
[328883311,1717955447903,-151.0,0.0002913,7]
[328883312,1717955447913,-213.908878,0.0002913,7]
[328883313,1717955447923,-151.0,0.0002913,7]
[328883314,1717955447933,-213.908878,0.0002913,7]
[328883315,1717955447942,-151.0,0.0002913,7]
[328883316,1717955447952,-151.0,0.0002913,7]
[328883317,1717955447962,-213.908878,0.0002913,7]
[328883318,1717955447972,-180.634119,0.0002913,7]
[328883319,1717955447982,-213.908878,0.0002913,7]
[328883321,1717955447993,-213.908878,0.0002913,7]
[328883322,1717955448003,-213.908878,0.0002913,7]
[328883324,1717955448013,-213.908878,0.0002913,7]
[328883326,1717955448023,-213.908878,0.0002913,7]
[328883328,1717955448032,-213.908878,0.0002913,7]
[328883330,1717955448042,-517.747658,0.0002913,7]
[328883332,1717955448051,-517.747658,0.0002913,7]
[328883334,1717955448062,-517.747658,0.0002913,7]
[328883336,1717955448072,-517.747658,0.0002913,7]
[328883338,1717955448083,-517.747658,0.0002913,7]
[328883340,1717955448092,-517.747658,0.0002913,7]
[328883342,1717955448102,-517.747658,0.0002913,7]
[328883344,1717955448112,-517.747658,0.0002913,7]
[328883346,1717955448122,-517.747658,0.0002913,7]
[328883348,1717955448132,-517.747658,0.0002913,7]
[328883350,1717955448142,-517.747658,0.0002913,7]
[328883352,1717955448154,-517.747658,0.0002913,7]
[328883354,1717955448164,-151.0,0.0002913,7]
[328883356,1717955448174,-151.0,0.0002913,7]
[328883358,1717955448184,-151.0,0.0002913,7]
[328883360,1717955448195,-151.0,0.0002913,7]
[328883363,1717955448206,-151.0,0.0002913,7]
[328883364,1717955448217,-151.0,0.0002913,7]
[328883367,1717955448227,-151.0,0.0002913,7]
[328883369,1717955448238,-151.0,0.0002913,7]
[328883371,1717955448247,-151.0,0.0002913,7]
[328883372,1717955448257,-151.0,0.0002913,7]
[328883374,1717955448267,-151.0,0.0002913,7]
[328883377,1717955448277,-151.0,0.0002913,7]
[328883379,1717955448287,-151.0,0.0002913,7]
[328883381,1717955448297,-151.0,0.0002913,7]
[328883383,1717955448308,-151.0,0.0002913,7]
[328883385,1717955448318,-151.0,0.0002913,7]
[328883387,1717955448328,-151.0,0.0002913,7]
[328883389,1717955448338,-151.0,0.0002913,7]
[328883391,1717955448348,-151.0,0.0002913,7]
[328883393,1717955448358,-151.0,0.0002913,7]
[328883395,1717955448367,-166.170055,0.0002913,7]
[328883397,1717955448378,-157.374885,0.0002913,7]
[328883399,1717955448388,-157.374885,0.0002913,7]
[328883401,1717955448398,-157.374885,0.0002913,7]
[328883403,1717955448408,-157.374885,0.0002913,7]
[328883405,1717955448419,-157.374885,0.0002913,7]
[328883407,1717955448430,-151.0,0.0002913,7]
[328883409,1717955448440,-151.0,0.0002913,7]
[328883411,1717955448450,-151.0,0.0002913,7]
[328883413,1717955448460,-157.374885,0.0002913,7]
[328883415,1717955448469,-151.0,0.0002913,7]
[328883417,1717955448479,-151.0,0.0002913,7]
[328883419,1717955448489,-157.374885,0.0002913,7]
[328883421,1717955448498,-157.374885,0.0002913,7]
[328883423,1717955448509,-157.374885,0.0002913,7]
[328883425,1717955448518,-157.374885,0.0002913,7]
[328883427,1717955448528,-403.59355,0.0002913,7]
[328883429,1717955448538,-403.59355,0.0002913,7]
[328883431,1717955448547,-403.59355,0.0002913,7]
[328883433,1717955448557,-403.59355,0.0002913,7]
[328883435,1717955448567,-403.59355,0.0002913,7]
[328883436,1717955448576,-403.59355,0.0002913,7]
[328883438,1717955448586,-403.59355,0.0002913,7]
[328883440,1717955448596,-403.59355,0.0002913,7]
[328883442,1717955448607,-403.59355,0.0002913,7]
[328883444,1717955448617,-403.59355,0.0002913,7]
[328883447,1717955448628,-151.0,0.0002913,7]
[328883449,1717955448639,-170.310143,0.0002913,7]
[328883450,1717955448649,-151.0,0.0002913,7]
[328883452,1717955448659,-151.0,0.0002913,7]
[328883454,1717955448669,-153.013944,0.0002913,7]
[328883456,1717955448679,-151.0,0.0002913,7]
[328883458,1717955448689,-151.0,0.0002913,7]
[328883460,1717955448699,-151.0,0.0002913,7]
[328883462,1717955448709,-151.0,0.0002913,7]
[328883464,1717955448719,-484.37197,0.0002913,7]
[328883466,1717955448729,-484.37197,0.0002913,7]
[328883468,1717955448739,-484.37197,0.0002913,7]
[328883470,1717955448750,-484.37197,0.0002913,7]
[328883473,1717955448762,-484.37197,0.0002913,7]
[328883475,1717955448774,-151.0,0.0002913,7]
[328883477,1717955448786,-151.0,0.0002913,7]
[328883479,1717955448797,-151.0,0.0002913,7]
[328883481,1717955448808,-484.37197,0.0002913,7]
[328883483,1717955448817,-151.0,0.0002913,7]
[328883485,1717955448827,-484.37197,0.0002913,7]
[328883487,1717955448837,-151.0,0.0002913,7]
[328883489,1717955448846,-484.37197,0.0002913,7]
[328883491,1717955448857,-151.0,0.0002913,7]
[328883493,1717955448867,-484.37197,0.0002913,7]
[328883495,1717955448877,-484.37197,0.0002913,7]
[328883497,1717955448887,-151.0,0.0002913,7]
[328883499,1717955448896,-151.0,0.0002913,7]
[328883501,1717955448906,-278.206976,0.0002913,7]
[328883503,1717955448916,-151.0,0.0002913,7]
[328883505,1717955448925,-338.941851,0.0002913,7]
[328883507,1717955448935,-338.941851,0.0002913,7]
[328883509,1717955448946,-338.941851,0.0002913,7]
[328883511,1717955448956,-338.941851,0.0002913,7]
[328883513,1717955448966,-338.941851,0.0002913,7]
[328883515,1717955448976,-338.941851,0.0002913,7]
[328883517,1717955448987,-338.941851,0.0002913,7]
[328883519,1717955448997,-338.941851,0.0002913,7]
[328883521,1717955449008,-338.941851,0.0002913,7]
[328883523,1717955449018,-338.941851,0.0002913,7]
[328883525,1717955449029,-151.0,0.0002913,7]
[328883527,1717955449040,-151.0,0.0002913,7]
[328883529,1717955449050,-151.0,0.0002913,7]
[328883531,1717955449061,-151.0,0.0002913,7]
[328883533,1717955449071,-155.29562,0.0002913,7]
[328883535,1717955449082,-205.645038,0.0002913,7]
[328883537,1717955449093,-205.645038,0.0002913,7]
[328883539,1717955449103,-205.645038,0.0002913,7]
[328883541,1717955449114,-205.645038,0.0002913,7]
[328883543,1717955449124,-205.645038,0.0002913,7]
[328883545,1717955449135,-205.645038,0.0002913,7]
[328883547,1717955449145,-205.645038,0.0002913,7]
[328883549,1717955449156,-164.084727,0.0002913,7]
[328883552,1717955449166,-205.645038,0.0002913,7]
[328883554,1717955449176,-164.084727,0.0002913,7]
[328883556,1717955449186,-205.645038,0.0002913,7]
[328883558,1717955449197,-164.084727,0.0002913,7]
[328883560,1717955449209,-205.645038,0.0002913,7]
[328883562,1717955449220,-164.084727,0.0002913,7]
[328883564,1717955449230,-205.645038,0.0002913,7]
[328883566,1717955449241,-164.084727,0.0002913,7]
[328883568,1717955449252,-205.645046,0.0002913,7]
[328883570,1717955449263,-154.394726,0.0002913,7]
[328883572,1717955449274,-164.084727,0.0002913,7]
[328883574,1717955449286,-164.084727,0.0002913,7]
[328883576,1717955449296,-164.084727,0.0002913,7]
[328883578,1717955449306,-164.084727,0.0002913,7]
[328883580,1717955449317,-164.084727,0.0002913,7]
[328883582,1717955449327,-417.090375,0.0002913,7]
[328883584,1717955449338,-417.090375,0.0002913,7]
[328883586,1717955449347,-417.090375,0.0002913,7]
[328883588,1717955449357,-417.090375,0.0002913,7]
[328883590,1717955449367,-417.090375,0.0002913,7]
[328883592,1717955449378,-417.090375,0.0002913,7]
[328883594,1717955449388,-417.090375,0.0002913,7]
[328883596,1717955449398,-417.090375,0.0002913,7]
[328883598,1717955449410,-417.090375,0.0002913,7]
[328883601,1717955449421,-295.283717,0.0002913,7]
[328883603,1717955449432,-417.090375,0.0002913,7]
[328883605,1717955449443,-417.090375,0.0002913,7]
[328883607,1717955449454,-417.090379,0.0002913,7]
[328883609,1717955449464,-295.283717,0.0002913,7]
[328883611,1717955449474,-295.283717,0.0002913,7]
[328883613,1717955449485,-238.829658,0.0002913,7]
[328883615,1717955449495,-295.283717,0.0002913,7]
[328883617,1717955449507,-238.829658,0.0002913,7]
[328883619,1717955449517,-295.283717,0.0002913,7]
[328883622,1717955449529,-238.829658,0.0002913,7]
[328883624,1717955449539,-295.283717,0.0002913,7]
[328883626,1717955449550,-238.829658,0.0002913,7]
[328883628,1717955449561,-238.829658,0.0002913,7]
[328883630,1717955449571,-238.829658,0.0002913,7]
[328883632,1717955449582,-295.283717,0.0002913,7]
[328883634,1717955449593,-295.283717,0.0002913,7]
[328883636,1717955449603,-152.96466,0.0002913,7]
[328883639,1717955449614,-295.283717,0.0002913,7]
[328883641,1717955449624,-238.829658,0.0002913,7]
[328883643,1717955449634,-295.283717,0.0002913,7]
[328883645,1717955449644,-238.829658,0.0002913,7]
[328883647,1717955449654,-295.283717,0.0002913,7]
[328883649,1717955449665,-295.283725,0.0002913,7]
[328883651,1717955449675,-238.829658,0.0002913,7]
[328883653,1717955449686,-238.829658,0.0002913,7]
[328883655,1717955449696,-238.829658,0.0002913,7]
[328883657,1717955449707,-238.829666,0.0002913,7]
[328883659,1717955449718,-1948.878555,0.0002913,7]
[328883661,1717955449728,-1948.878555,0.0002913,7]
[328883663,1717955449738,-1948.878555,0.0002913,7]
[328883665,1717955449748,-1948.878555,0.0002913,7]
[328883667,1717955449758,-1948.878555,0.0002913,7]
[328883669,1717955449768,-1948.878555,0.0002913,7]
[328883671,1717955449778,-1948.878555,0.0002913,7]
[328883674,1717955449788,-1948.878555,0.0002913,7]
[328883676,1717955449799,-1948.878555,0.0002913,7]
[328883678,1717955449809,-1423.39646416,0.00029138,2]
[328883680,1717955449820,-500.0,0.00029138,3]
[328883682,1717955449830,-500.0,0.00029138,3]
[328883684,1717955449840,-1014.3513314,0.00029142,2]
[328883686,1717955449852,-24875.2938606,0.00029142,2]
[328883688,1717955449862,-500.0,0.00029147,3]
[328883690,1717955449873,-500.0,0.00029147,3]
[328883692,1717955449883,-366.77455406,0.00029149,2]
[328883694,1717955449893,-150.53363633,0.0002915,15]
[328883696,1717955449904,-3898.04430095,0.00029151,2]
[328883849,1717956242716,267.190533,0.0001498,2]
[328883850,1717956293669,160.45929932,0.00014953,2]
[328883851,1717956325255,50751.43105754,0.0001498,2]
[328883852,1717956326280,18734.90355001,0.0001498,2]
[328883853,1717956339226,5293.51984,0.00014902,2]
[328883854,1717956339293,803.0,0.00015,2]
[328883855,1717956342317,2622.66559112,0.00014953,2]
[328883856,1717956351957,186.03117519,0.00015,2]
[328883857,1717956352050,-325.5,0.00015001,2]
[328883858,1717956357911,263.8016458,0.00015,2]
[328883859,1717956361319,293.0,0.00015,2]
[328883860,1717956362132,338.4202948,0.00015,2]
[328883861,1717956362189,150.0,0.00015,2]
[328883862,1717956362666,150.0,0.00015,2]
[328883863,1717956362916,155.0,0.00015,2]
[328883864,1717956370260,1261.47243226,0.00015,2]
[328883865,1717956381282,3058.20545801,0.00015,2]
[328883866,1717956381866,490.51311833,0.00015,2]
[328883867,1717956390223,3065.39010227,0.00015,2]
[328883868,1717956391290,217.40040456,0.00015,2]
[328883869,1717956395550,658.95366883,0.00015,2]
[328883870,1717956419990,2194.29164749,0.00015,2]
[328883871,1717956553157,-4614.50555793,0.00015001,2]
[328883872,1717956553179,-167.71798904,0.00015003,2]
[328883873,1717956557389,941.94965729,0.00015,2]
[328883876,1717956637564,-719.32179268,0.00015078,2]
[328883877,1717956637574,-160.45929932,0.00015079,2]
[328883878,1717956637585,-152.04062281,0.00015079,2]
[328883879,1717956637821,-1557.96,0.00015179,2]
[328883880,1717956637832,-150.0,0.00015362,2]
[328883881,1717956637843,-195.51398481,0.00015363,2]
[328883882,1717956637853,-4510.54,0.00015363,2]
[328883883,1717956637863,-184.11,0.00015363,2]
[328883884,1717956637873,-242.22,0.00015626,2]
[328883885,1717956637883,-210.0,0.00016899,2]
[328883886,1717956637894,-154.9,0.0001726,2]
[328883887,1717956637904,-499.99,0.00017534,2]
[328883888,1717956637914,-410.71444774,0.00017534,2]
[328883889,1717956637928,-142.88555226,0.00017534,2]
[328883890,1717956637939,-150.99,0.00017534,2]
[328883891,1717956637950,-152.0406228,0.00017811,2]
[328883892,1717956637960,-164.47,0.00018169,2]
[328883893,1717956637970,-293.0,0.00018588,2]
[328883894,1717956637981,-1718.0,0.00019,2]
[328883895,1717956637993,-555.0,0.00019,2]
[328883896,1717956638003,-152.0406228,0.00020543,2]
[328883897,1717956638013,-423.87,0.00020851,2]
[328883898,1717956638024,-325.48556434,0.00021781,7]
[328883899,1717956638034,-155.14974065,0.00021974,2]
[328883900,1717956638045,-7641.02218146,0.00022548,2]
[328883901,1717956638073,-1064.71783951,0.00022548,2]
[328883902,1717956638086,-15184.25997903,0.00022548,2]
[328883903,1717956638096,-160.45929932,0.00022669,2]
[328883904,1717956638106,-2751.0,0.00022769,2]
[328883905,1717956638118,-200.0,0.00022948,2]
[328883906,1717956638129,-423.87,0.00023115,2]
[328883907,1717956638140,-693.76,0.00023204,2]
[328883908,1717956638151,-250.0,0.00023218,2]
[328883909,1717956638161,-432.6,0.00023253,2]
[328883910,1717956638172,-150.0,0.00023256,2]
[328883911,1717956638182,-3750.35,0.00023258,2]
[328883912,1717956638195,-165.36,0.00023268,2]
[328883913,1717956638205,-152.0406228,0.00023275,2]
[328883914,1717956638215,-4123.2,0.00023279,2]
[328883915,1717956638226,-430.87,0.00023325,2]
[328883916,1717956638235,-500.0,0.00023372,2]
[328883917,1717956638245,-162.09,0.00023801,2]
[328883918,1717956638255,-310.99,0.00023945,2]
[328883919,1717956638266,-2361.38,0.0002399,2]
[328883920,1717956638276,-712.62,0.00024034,2]
[328883921,1717956638287,-263.8016458,0.00024315,2]
[328883922,1717956638298,-500.0,0.00024316,2]
[328883923,1717956638311,-200.0,0.00024316,2]
[328883924,1717956638321,-1000.0,0.00024362,2]
[328883925,1717956638331,-225.99,0.00024384,2]
[328883926,1717956638342,-160.88,0.00024384,2]
[328883927,1717956638352,-900.0,0.00024498,2]
[328883928,1717956638362,-900.0,0.00024566,2]
[328883929,1717956638374,-900.0,0.00024633,2]
[328883930,1717956638383,-900.0,0.000247,2]
[328883931,1717956638394,-900.0,0.00024767,2]
[328883932,1717956638404,-900.0,0.00024834,2]
[328883933,1717956638414,-900.0,0.00024902,2]
[328883934,1717956638424,-900.0,0.00024969,2]
[328883935,1717956638434,-250.0,0.00024982,2]
[328883936,1717956638445,-14470.49920023,0.00025,2]
[328883937,1717956638455,-900.0,0.00025036,2]
[328883938,1717956638465,-900.0,0.00025103,2]
[328883939,1717956638475,-310.99,0.00025142,2]
[328883940,1717956638485,-900.0,0.0002517,2]
[328883941,1717956638496,-900.0,0.00025237,2]
[328883942,1717956638505,-900.0,0.00025305,2]
[328883943,1717956638516,-900.0,0.00025372,2]
[328883945,1717956638526,-423.87,0.00025379,2]
[328883947,1717956638536,-900.0,0.00025439,2]
[328883949,1717956638546,-266.66,0.00025505,2]
[328883951,1717956638557,-900.0,0.00025506,2]
[328883953,1717956638566,-900.0,0.00025573,2]
[328883955,1717956638576,-900.0,0.00025641,2]
[328883957,1717956638586,-900.0,0.00025708,2]
[328883959,1717956638596,-900.0,0.00025775,2]
[328883960,1717956638605,-684.45925283,0.00025892,2]
[328883963,1717956638618,-287.54074717,0.00025892,2]
[328883965,1717956638628,-1670.92699817,0.00025892,2]
[328883966,1717956638640,-159.07300183,0.00025892,2]
[328883967,1717956638650,-1265.0,0.00025892,2]
[328883968,1717956638660,-1648.0,0.00025892,2]
[328883969,1717956638669,-739.263,0.00025892,2]
[328883970,1717956638678,-208.906,0.00025892,2]
[328883971,1717956638695,-152.0406228,0.00026007,2]
[328883972,1717956638704,-152.81147047,0.00026022,2]
[328883973,1717956638714,-453.18629123,0.00026075,2]
[328883974,1717956638724,-180.0,0.00026077,2]
[328883975,1717956638735,-152.12181674,0.0002617,2]
[328883976,1717956638745,-152.81147047,0.00026239,2]
[328883977,1717956638754,-310.99,0.00026339,2]
[328883978,1717956638765,-172.52,0.00026387,2]
[328883979,1717956638775,-152.81147047,0.0002653,2]
[328883980,1717956638786,-152.81147047,0.00026578,2]
[328883981,1717956638796,-154.12960705,0.00026585,2]
[328883982,1717956638808,-152.12181674,0.00026693,2]
[328883983,1717956638818,-150.0,0.00026715,10]
[328883984,1717956638828,-712.62,0.00026774,2]
[328883985,1717956638838,-152.81147047,0.00026928,2]
[328883986,1717956638848,-155.12204795,0.00026953,2]
[328883987,1717956638862,-159.19903636,0.00026994,2]
[328883988,1717956638873,-152.81147047,0.0002707,2]
[328883989,1717956638883,-152.12181674,0.00027188,2]
[328883990,1717956638893,-152.81147047,0.00027348,2]
[328883991,1717956638902,-152.81147047,0.00027359,2]
[328883992,1717956638912,-150.0,0.00027397,2]
[328883993,1717956638923,-1000.0,0.00027407,2]
[328883994,1717956638933,-310.99,0.00027536,2]
[328883995,1717956638943,-107.4429406,0.0002757,2]
[328883996,1717956638956,-45.36852987,0.0002757,2]
[328883997,1717956638966,-152.81147047,0.00027619,2]
[328883998,1717956638976,-200.94662844,0.00027643,2]
[328883999,1717956638988,-222.92337156,0.00027643,2]
[328884000,1717956638999,-160.86846231,0.00027645,2]
[328884001,1717956639009,-152.81147047,0.00027659,2]
[328884002,1717956639019,-152.81147047,0.00027682,2]
[328884003,1717956639029,-9.46403519,0.00027734,2]
[328884004,1717956639046,-143.34743528,0.00027734,2]
[328884005,1717956639057,-165.29285526,0.00027833,7]
[328884006,1717956639068,-2010.60105363,0.00027833,2]
[328884007,1717956639079,-152.12181674,0.00027878,2]
[328884008,1717956639089,-250.0,0.00027956,2]
[328884009,1717956639099,-152.81147047,0.00028043,2]
[328884010,1717956639109,-152.0,0.00028087,3]
[328884011,1717956639119,-152.12181674,0.00028089,2]
[328884012,1717956639129,-150.0,0.00028118,2]
[328884013,1717956639139,-152.81147047,0.00028176,2]
[328884014,1717956639149,-154.12960706,0.00028232,2]
[328884015,1717956639159,-152.12181674,0.00028331,2]
[328884016,1717956639169,-151.0,0.0002837,4]
[328884017,1717956639180,-152.12181674,0.00028374,2]
[328884018,1717956639191,-1001.2254,0.00028499,2]
[328884019,1717956639201,-155.12204795,0.0002855,2]
[328884020,1717956639213,-155.0,0.00028554,2]
[328884021,1717956639223,-285.9507479,0.00028568,2]
[328884022,1717956639233,-152.12181674,0.00028606,2]
[328884023,1717956639243,-1000.0,0.000287,2]
[328884024,1717956639253,-310.99,0.00028734,2]
[328884025,1717956639264,-165.11507629,0.00028739,2]
[328884026,1717956639274,-152.0406228,0.00028739,2]
[328884027,1717956639284,-49.48328712,0.00028787,2]
[328884028,1717956639297,-103.32818335,0.00028787,2]
[328884029,1717956639309,-152.12181674,0.0002879,2]
[328884030,1717956639319,-155.17448018,0.000288,2]
[328884031,1717956639331,-1836.54472027,0.000288,2]
[328884032,1717956639352,-3219.76908404,0.000288,2]
[328884041,1717956639482,-2572.7999904,0.000288,2]
[328884044,1717956639503,-90729.55422511,0.000288,2]
[328884046,1717956639512,-3697.69416455,0.00028839,2]
[328884048,1717956639523,-155.0,0.00028839,2]
[328884050,1717956639533,-947.22670795,0.00028839,2]
[328884052,1717956639543,-150.0,0.00028839,2]
[328884054,1717956639554,-381.76420571,0.00028849,2]
[328884056,1717956639565,-2033.71905,0.0002886,2]
[328884057,1717956639575,-154.56666579,0.00028897,2]
[328884060,1717956639585,-1011.2,0.000289,2]
[328884061,1717956639595,-150.0,0.00028905,2]
[328884064,1717956639607,-500.0,0.00028906,2]
[328884066,1717956639617,-200.0,0.00028906,2]
[328884067,1717956639627,-430.95461727,0.00028909,2]
[328884068,1717956639637,-152.81147047,0.0002892,2]
[328884069,1717956639647,-150.0,0.00028925,2]
[328884070,1717956639657,-152.0,0.00028926,5]
[328884071,1717956639667,-150.0,0.00028929,2]
[328884073,1717956639677,-150.0,0.00028936,2]
[328884075,1717956639691,-152.81147047,0.00028941,2]
[328884077,1717956639700,-154.04769496,0.00028945,2]
[328884079,1717956639710,-151.0,0.00028949,2]
[328884081,1717956639720,-150.0,0.0002895,2]
[328884083,1717956639731,-500.0,0.00028962,15]
[328884085,1717956639742,-150.0,0.00028963,2]
[328884087,1717956639752,-150.0,0.00028977,2]
[328884088,1717956639762,-430.95461723,0.00028982,2]
[328884089,1717956639775,-150.0,0.00028984,2]
[328884090,1717956639785,-150.0,0.00028996,2]
[328884091,1717956639795,-4170.43277724,0.00029,2]
[328884092,1717956639806,-1488.77203247,0.00029007,2]
[328884093,1717956639818,-13657.2,0.00029009,2]
[328884094,1717956639828,-1329.35,0.00029009,2]
[328884095,1717956639837,-150.0,0.00029024,2]
[328884096,1717956639847,-150.0,0.00029027,2]
[328884097,1717956639857,-239.6456,0.00029028,2]
[328884098,1717956639867,-150.0,0.00029035,2]
[328884099,1717956639877,-1500.0,0.00029036,2]
[328884100,1717956639886,-150.0,0.00029051,2]
[328884101,1717956639896,-430.95461723,0.00029055,2]
[328884102,1717956639905,-409.71276047,0.00029074,2]
[328884103,1717956639915,-152.81147047,0.00029075,2]
[328884104,1717956639925,-165.36,0.00029085,2]
[328884105,1717956639936,-409.71276042,0.00029092,2]
[328884106,1717956639946,-800.0,0.00029096,2]
[328884107,1717956639956,-156.11987574,0.00029097,2]
[328884108,1717956639966,-160.0,0.000291,2]
[328884109,1717956639977,-345.0,0.000291,2]
[328884110,1717956639988,-691.0,0.000291,2]
[328884111,1717956639998,-1030.0,0.000291,17]
[328884112,1717956640008,-488.0,0.000291,13]
[328884113,1717956640018,-250.978798,0.000291,2]
[328884114,1717956640028,-190.0,0.000291,13]
[328884115,1717956640038,-150.0,0.000291,6]
[328884116,1717956640048,-409.71276042,0.0002911,2]
[328884117,1717956640060,-150.0,0.00029119,2]
[328884118,1717956640070,-430.95461723,0.00029127,2]
[328884119,1717956640080,-156.5803339,0.00029128,2]
[328884120,1717956640091,-409.71276042,0.00029128,2]
[328884121,1717956640101,-845.07702136,0.00029129,2]
[328884122,1717956640111,-276.34343751,0.00029129,2]
[328884123,1717956640121,-150.0,0.00029129,2]
[328884124,1717956640131,-663.8098923,0.00029136,2]
[328884125,1717956640140,-14786.9919125,0.00029136,2]
[328884126,1717956640150,-6633.1494814,0.00029136,2]
[328884127,1717956640159,-2679.5059706,0.00029136,2]
[328884128,1717956640168,-1500.0,0.00029143,2]
[328884129,1717956640178,-150.0,0.00029144,2]
[328884130,1717956640187,-409.71276042,0.00029146,2]
[328884131,1717956640196,-251.41494625,0.0002915,2]
[328884132,1717956640207,-257.9877105,0.00029151,2]
[328884133,1717956640216,-446.97972469,0.00029151,2]
[328884134,1717956640226,-500.0,0.00029151,2]
[328884135,1717956640236,-289.77027147,0.00029151,2]
[328884136,1717956640246,-5864.0395202,0.00029154,2]
[328884137,1717956640256,-2368.8187565,0.00029154,2]
[328884138,1717956640266,-570.569842,0.00029155,2]
[328884139,1717956640275,-12716.9668356,0.00029155,2]
[328884140,1717956640285,-500.0,0.00029156,3]
[328884141,1717956640295,-500.0,0.00029156,3]
[328884142,1717956640305,-5094.929559,0.0002916,2]
[328884143,1717956640314,-2058.1315424,0.0002916,2]
[328884144,1717956640324,-409.71276042,0.00029164,2]
[328884145,1717956640334,-500.0,0.00029165,3]
[328884146,1717956640344,-500.0,0.00029165,3]
[328884147,1717956640353,-477.3297917,0.00029171,2]
[328884148,1717956640362,-10646.9417587,0.00029171,2]
[328884149,1717956640372,-500.0,0.00029174,3]
[328884150,1717956640382,-500.0,0.00029174,3]
[328884151,1717956640391,-500.0,0.00029174,3]
[328884152,1717956640401,-500.0,0.00029174,2]
[328884153,1717956640411,-500.0,0.00029174,2]
[328884154,1717956640421,-500.0,0.00029174,2]
[328884155,1717956640430,-500.0,0.00029174,2]
[328884156,1717956640440,-1000.0,0.00029177,2]
[328884157,1717956640449,-199.85,0.00029178,2]
[328884158,1717956640459,-384.0897415,0.0002918,2]
[328884159,1717956640470,-8576.9166818,0.0002918,2]
[328884160,1717956640480,-4325.8195979,0.0002918,2]
[328884161,1717956640489,-1747.4443283,0.0002918,2]
[328884162,1717956640499,-500.0,0.00029182,3]